{"text_format":"1","workbook":"xlsx","n_sheets":3,"sheets":["Relación de gastos","Relación de ingresos ","Resumen estado gastos-ingresos"],"not_rendered":{"charts":0,"images":1,"macros":1,"external_links":0,"defined_names":7,"comments":3,"pivot_tables":0},"unopened":[],"bounds":{"document_bytes":16777216,"sheet_cells":100000,"rows_first":2000,"rows_last":500,"rows_between":2000,"halvings":0,"cell_chars":16384,"cell_head_chars":4096},"cells_cut":0,"cells_raw":0,"read":"whole","date_system":"1900"}

{"sheet":"Relación de gastos","index":0,"n_rows":97,"n_cols":10,"rows_kept":97,"cut":false,"hidden":false,"merged":[[92,0,92,10],[63,0,63,6],[57,0,57,10],[29,9,29,10],[28,9,28,10],[7,3,7,4],[77,0,77,10],[81,0,81,6],[64,0,64,10],[78,9,78,10],[79,9,79,10],[72,9,72,10],[22,9,22,10],[23,9,23,10],[24,9,24,10],[33,9,33,10],[80,9,80,10],[50,0,50,10],[49,0,49,6],[37,9,37,10],[69,9,69,10],[68,9,68,10],[67,9,67,10],[7,9,7,10],[8,9,8,10],[9,0,9,10],[25,9,25,10],[71,0,71,10],[76,0,76,6],[70,0,70,6],[74,9,74,10],[73,9,73,10],[70,9,70,10],[81,9,81,10],[49,9,49,10],[3,0,3,1],[7,1,8,1],[7,0,8,0],[6,0,6,4],[65,9,65,10],[76,9,76,10],[75,9,75,10],[66,9,66,10],[51,9,51,10],[63,9,63,10],[62,9,62,10],[61,9,61,10],[60,9,60,10],[59,9,59,10],[58,9,58,10],[56,9,56,10],[55,9,55,10],[31,9,31,10],[30,9,30,10],[56,0,56,6],[12,9,12,10],[54,9,54,10],[53,9,53,10],[52,9,52,10],[36,0,36,10],[43,0,43,10],[15,9,15,10],[14,9,14,10],[13,9,13,10],[26,9,26,10],[44,9,44,10],[42,9,42,10],[41,9,41,10],[40,9,40,10],[39,9,39,10],[34,9,34,10],[16,9,16,10],[18,9,18,10],[35,0,35,6],[42,0,42,6],[27,0,27,10],[35,9,35,10],[0,0,0,10],[4,0,4,1],[26,0,26,6],[2,2,2,3],[3,2,3,3],[4,2,4,3],[10,9,10,10],[2,0,2,1],[85,0,85,10],[86,0,86,10],[93,0,93,10],[94,0,94,10],[95,0,95,10],[96,0,96,10],[82,0,82,3],[2,4,2,6],[3,4,3,6],[4,4,4,6],[48,9,48,10],[47,9,47,10],[46,9,46,10],[45,9,45,10],[7,2,8,2],[11,9,11,10],[2,7,2,8],[3,7,3,8],[4,7,4,8],[19,9,19,10],[20,9,20,10],[21,9,21,10],[32,9,32,10],[38,9,38,10]]}
["Relación clasificada de todos los gastos realizados para la ejecución de la actividad subvencionada"]
[]
["Persona física/jurídica beneficiaria:         ",null,null,null,"Importe total del proyecto:"]
["Código de subvención:",null,null,null,"Importe de la subvención otorgada:"]
["Nombre del proyecto subvencionado:",null,null,null,"Periodo de ejecución del proyecto subvencionado:",null,null,null,null,"a"]
[]
["Gastos del proyecto/actividad/servicio subvencionado (*)"]
["n.º de orden","Número de documento: justificantes gasto personal (1), factura o recibo/tique (2)","Concepto de la factura / \ndocumento probatorio equivalente","Emisor de la factura",null,"Fecha de emisión","Importe total de la factura","Importe imputable (dedicado) al proyecto (3)","Importe imputable a la subvención municipal (4)","Observaciones"]
[null,null,null,"NIF","Nombre","dd/mm/aaaa","euros","euros","euros","(2)"]
["A. Recursos Humanos (retribuciones brutas y Seguridad Social)"]
[{"$f":"IF(B11<>\"\",1,\"\")","v":""}]
[{"$f":"IF(B12<>\"\",MAX($A$11:A11)+1,\"\")","v":""}]
[{"$f":"IF(B13<>\"\",MAX($A$11:A12)+1,\"\")","v":""}]
[{"$f":"IF(B14<>\"\",MAX($A$11:A13)+1,\"\")","v":""}]
[{"$f":"IF(B15<>\"\",MAX($A$11:A14)+1,\"\")","v":""}]
[{"$f":"IF(B16<>\"\",MAX($A$11:A15)+1,\"\")","v":""}]
[{"$f":"IF(B17<>\"\",MAX($A$11:A16)+1,\"\")","v":""}]
[{"$f":"IF(B18<>\"\",MAX($A$11:A17)+1,\"\")","v":""}]
[{"$f":"IF(B19<>\"\",MAX($A$11:A18)+1,\"\")","v":""}]
[{"$f":"IF(B20<>\"\",MAX($A$11:A19)+1,\"\")","v":""}]
[{"$f":"IF(B21<>\"\",MAX($A$11:A20)+1,\"\")","v":""}]
[{"$f":"IF(B22<>\"\",MAX($A$11:A21)+1,\"\")","v":""}]
[{"$f":"IF(B23<>\"\",MAX($A$11:A22)+1,\"\")","v":""}]
[{"$f":"IF(B24<>\"\",MAX($A$11:A23)+1,\"\")","v":""}]
[{"$f":"IF(B25<>\"\",MAX($A$11:A24)+1,\"\")","v":""}]
[{"$f":"IF(B26<>\"\",MAX($A$11:A25)+1,\"\")","v":""}]
["Subtotal A",null,null,null,null,null,null,{"$f":"SUM(H11:H26)","v":0},{"$f":"SUM(I11:I26)","v":0}]
["B. Gastos derivados de la difusión, promoción, publicidad del proyecto y de los resultados"]
[{"$f":"IF(B29<>\"\",MAX($A$11:A28)+1,\"\")","v":""}]
[{"$f":"IF(B30<>\"\",MAX($A$28:A29)+1,\"\")","v":""}]
[{"$f":"IF(B31<>\"\",MAX($A$28:A30)+1,\"\")","v":""}]
[{"$f":"IF(B32<>\"\",MAX($A$28:A31)+1,\"\")","v":""}]
[{"$f":"IF(B33<>\"\",MAX($A$28:A32)+1,\"\")","v":""}]
[{"$f":"IF(B34<>\"\",MAX($A$28:A33)+1,\"\")","v":""}]
[{"$f":"IF(B35<>\"\",MAX($A$28:A34)+1,\"\")","v":""}]
["Subtotal B",null,null,null,null,null,null,{"$f":"SUM(H29:H35)","v":0},{"$f":"SUM(I29:I35)","v":0}]
["C. Gastos de publicaciones en formato de acceso abierto (open access)"]
[{"$f":"IF(B38<>\"\",MAX($A$11:A37)+1,\"\")","v":""}]
[{"$f":"IF(B39<>\"\",MAX($A$28:A38)+1,\"\")","v":""}]
[{"$f":"IF(B40<>\"\",MAX($A$28:A39)+1,\"\")","v":""}]
[{"$f":"IF(B41<>\"\",MAX($A$28:A40)+1,\"\")","v":""}]
[{"$f":"IF(B42<>\"\",MAX($A$28:A41)+1,\"\")","v":""}]
["Subtotal C",null,null,null,null,null,null,{"$f":"SUM(H38:H42)","v":0},{"$f":"SUM(I38:I42)","v":0}]
["D. Gastos de viajes, alojamiento y manutención"]
[{"$f":"IF(B45<>\"\",MAX($A$11:A44)+1,\"\")","v":""}]
[{"$f":"IF(B46<>\"\",MAX($A$28:A45)+1,\"\")","v":""}]
[{"$f":"IF(B47<>\"\",MAX($A$28:A46)+1,\"\")","v":""}]
[{"$f":"IF(B48<>\"\",MAX($A$28:A47)+1,\"\")","v":""}]
[{"$f":"IF(B49<>\"\",MAX($A$28:A48)+1,\"\")","v":""}]
["Subtotal D",null,null,null,null,null,null,{"$f":"SUM(H45:H49)","v":0},{"$f":"SUM(I45:I49)","v":0}]
["E. Gastos derivados de la internacionalización de la actividad"]
[{"$f":"IF(B52<>\"\",MAX($A$11:A51)+1,\"\")","v":""}]
[{"$f":"IF(B53<>\"\",MAX($A$28:A52)+1,\"\")","v":""}]
[{"$f":"IF(B54<>\"\",MAX($A$28:A53)+1,\"\")","v":""}]
[{"$f":"IF(B55<>\"\",MAX($A$28:A54)+1,\"\")","v":""}]
[{"$f":"IF(B56<>\"\",MAX($A$28:A55)+1,\"\")","v":""}]
["Subtotal E",null,null,null,null,null,null,{"$f":"SUM(H52:H56)","v":0},{"$f":"SUM(I52:I56)","v":0}]
["F. Gastos de adquisición de equipamiento científico-técnico (*excluida la adquisición de software durante los tres últimos meses de ejecución, excluida la adquisición de material inventariable)"]
[{"$f":"IF(B59<>\"\",MAX($A$11:A58)+1,\"\")","v":""}]
[{"$f":"IF(B60<>\"\",MAX($A$28:A59)+1,\"\")","v":""}]
[{"$f":"IF(B61<>\"\",MAX($A$28:A60)+1,\"\")","v":""}]
[{"$f":"IF(B62<>\"\",MAX($A$28:A61)+1,\"\")","v":""}]
[{"$f":"IF(B63<>\"\",MAX($A$28:A62)+1,\"\")","v":""}]
["Subtotal F",null,null,null,null,null,null,{"$f":"SUM(H59:H63)","v":0},{"$f":"SUM(I59:I63)","v":0}]
["G. Gastos de adquisición de material fungible"]
[{"$f":"IF(B66<>\"\",MAX($A$11:A65)+1,\"\")","v":""}]
[{"$f":"IF(B67<>\"\",MAX($A$28:A66)+1,\"\")","v":""}]
[{"$f":"IF(B68<>\"\",MAX($A$28:A67)+1,\"\")","v":""}]
[{"$f":"IF(B69<>\"\",MAX($A$28:A68)+1,\"\")","v":""}]
[{"$f":"IF(B70<>\"\",MAX($A$28:A69)+1,\"\")","v":""}]
["Subtotal G",null,null,null,null,null,null,{"$f":"SUM(H66:H70)","v":0},{"$f":"SUM(I66:I70)","v":0}]
["H. Gastos indirectos (máx. 18 % de la subvención)"]
[{"$f":"IF(B73<>\"\",MAX($A$11:A72)+1,\"\")","v":""}]
[{"$f":"IF(B74<>\"\",MAX($A$28:A73)+1,\"\")","v":""}]
[{"$f":"IF(B75<>\"\",MAX($A$28:A74)+1,\"\")","v":""}]
[{"$f":"IF(B76<>\"\",MAX($A$28:A75)+1,\"\")","v":""}]
["Subtotal H",null,null,null,null,null,null,{"$f":"SUM(H73:H76)","v":0},{"$f":"SUM(I73:I76)","v":0}]
["I. Otros gastos (no incluidos en ninguno de los apartados anteriores. Especificar)"]
[{"$f":"IF(B79<>\"\",MAX($A$11:A78)+1,\"\")","v":""}]
[{"$f":"IF(B80<>\"\",MAX($A$28:A79)+1,\"\")","v":""}]
[{"$f":"IF(B81<>\"\",MAX($A$28:A80)+1,\"\")","v":""}]
["Subtotal I",null,null,null,null,null,null,{"$f":"SUM(H79:H81)","v":0},{"$f":"SUM(I79:I81)","v":0}]
["Total GASTOS",null,null,null,null,null,"TOTAL",{"$f":"H27+H36+H43+H50+H57+H64+H71+H77+H82","v":0}]
[]
[]
["El/la Sr./Sra. (indicar el nombre y apellidos de la persona representante que firma la justificación)  con DNI/NIE (indicar el n.º de DNI) en calidad de representante legal de la persona jurídica beneficiaria (indicar nombre y apellidos) con NIF (indicar n.º NIF)."]
["CERTIFICA que los recibos/tiques que se han identificado como tales en el campo de observaciones corresponden a gastos generados por la mencionada actividad, que por sus importes y características no han podido ser objeto de factura; que los justificantes relacionados imputados al proyecto/actividad/servicio subvencionado durante su periodo de ejecución han sido efectivamente pagados; que custodiará la documentación de apoyo que lo acredita; que esta documentación se encuentra a disposición del Ayuntamiento de Barcelona o de los otros entes municipales en los archivos de esta entidad, durante un periodo mínimo de 4 años a contar desde la fecha de presentación de esta justificación."]
[]
[]
[null,"Población y fecha:  ",null,null,null,"Firmado digitalmente"]
[]
["Notas:"]
["(*) Se tienen que relacionar todos los gastos del proyecto subvencionado. En caso de que el número de filas de cada concepto sea insuficiente, se pueden insertar líneas dentro del mismo concepto seleccionando una celda verde y clicando sobre el botón de insertar línea."]
["(1) Con respecto a los gastos de recursos humanos, puede ser subvencionable el coste total salarial mensual, que corresponde a la suma de la retribución neta que aparece en la nómina del trabajador/a más la cuota de la empresa en la Seg. Social e IRPF. Los gastos de personal se justifican con la nómina del trabajador acompañada de los correspondientes RNT y RLC de la TGSS y el modelo 111 del IRPF."]
["(2) En caso de que el documento justificativo del resto de gastos no sea una factura, sino otro documento probatorio equivalente, como un recibo o justificante (por ejemplo, por dietas o transporte público), se debe indicar en el campo de observaciones."]
["(3) En caso de que un justificante incluya conceptos que no tienen que ver con el proyecto para el que se ha otorgado la subvención, aquí solo se debe incluir la parte que realmente se ha dedicado al proyecto."]
["(4) En esta columna se debe indicar el importe total o parcial de la factura que se imputa a la subvención recibida del Ayuntamiento de Barcelona. El total imputado, en esta columna, debe ser igual al importe de la subvención recibida."]

{"sheet":"Relación de ingresos ","index":1,"n_rows":62,"n_cols":10,"rows_kept":62,"cut":false,"hidden":false,"merged":[[57,5,57,6],[57,2,57,3],[13,6,13,9],[14,6,14,9],[28,6,28,9],[22,6,22,9],[21,6,21,9],[20,6,20,9],[19,6,19,9],[18,6,18,9],[25,6,25,9],[32,6,32,9],[34,6,34,9],[30,0,30,3],[38,6,38,9],[0,0,0,9],[9,0,9,9],[17,0,17,9],[24,0,24,9],[7,6,8,9],[10,6,10,9],[11,6,11,9],[7,0,8,0],[12,6,12,9],[15,6,15,9],[3,2,3,3],[2,2,2,3],[6,0,6,3],[4,2,4,3],[7,2,7,3],[16,0,16,3],[39,0,39,9],[40,6,40,9],[7,1,8,1],[37,6,37,9],[31,0,31,9],[38,0,38,3],[16,6,16,9],[23,6,23,9],[33,6,33,9],[23,0,23,3],[36,6,36,9],[35,6,35,9],[30,6,30,9],[29,6,29,9],[27,6,27,9],[26,6,26,9],[52,0,52,3],[51,0,51,3],[54,0,54,9],[55,0,55,9],[51,6,51,9],[50,6,50,9],[46,6,46,9],[44,6,44,9],[41,6,41,9],[52,6,52,9],[42,6,42,9],[43,6,43,9],[45,6,45,9],[47,6,47,9],[48,6,48,9],[49,6,49,9]]}
["Detalle de todos los ingresos obtenidos y aportaciones del propio beneficiario para la ejecución de la actividad subvencionada"]
[]
[null,"Nombre de la persona física/jurídica beneficiaria:        ",{"$f":"IF('Relación de gastos'!C3:D3<>\"\",'Relació de despeses'!C3:D3,\"\")","v":""},null,"Importe total del proyecto:",null,null,{"$f":"IF(+'Relación de gastos'!H3=\"\",\"\",+'Relación de gastos'!H3)","v":""}]
[null,"Código de subvención:",{"$f":"IF('Relación de gastos'!C4:D4<>\"\",'Relació de despeses'!C4:D4,\"\")","v":""},null,"Importe de la subvención otorgada:",null,null,{"$f":"IF(+'Relación de gastos'!H4=\"\",\"\",+'Relación de gastos'!H4)","v":""}]
[null,"Nombre del proyecto subvencionado:",{"$f":"IF('Relación de gastos'!C5:D5<>\"\",'Relació de despeses'!C5:D5,\"\")","v":""},null,"Periodo de ejecución del proyecto subvencionado:",null,null,{"$f":"IF(+'Relación de gastos'!H5=\"\",\"\",+'Relación de gastos'!H5)","v":""},"a",{"$f":"IF(+'Relación de gastos'!K5=\"\",\"\",+'Relación de gastos'!K5)","v":""}]
[]
["Ingresos del proyecto/actividad/servicio subvencionado*"]
["n.º de orden ","Concepto del ingreso","Emisor del ingreso",null,"Fecha de cobro\n(dd/mm/aaaa)","Importe","Observaciones"]
[null,null,"NIF","Nombre","(1)","euros"]
["A.B. Subvenciones del Ayuntamiento de Barcelona"]
[{"$f":"IF(B11<>\"\",1,\"\")","v":""}]
[]
[]
[]
[{"$f":"IF(B15<>\"\",MAX($A$10:A14)+1,\"\")","v":""}]
[{"$f":"IF(B16<>\"\",MAX($A$10:A15)+1,\"\")","v":""}]
[null,null,null,null,"Subtotal A",{"$f":"SUM(F11:F16)","v":0}]
["C. Subvenciones de otras administraciones"]
[{"$f":"IF(B19<>\"\",MAX($A$10:A18)+1,\"\")","v":""}]
[{"$f":"IF(B20<>\"\",MAX($A$10:A19)+1,\"\")","v":""}]
[{"$f":"IF(B21<>\"\",MAX($A$10:A20)+1,\"\")","v":""}]
[{"$f":"IF(B22<>\"\",MAX($A$10:A21)+1,\"\")","v":""}]
[{"$f":"IF(B23<>\"\",MAX($A$10:A22)+1,\"\")","v":""}]
[null,null,null,null,"Subtotal B",{"$f":"SUM(F19:F23)","v":0}]
["D. Aportaciones de entes privados"]
[{"$f":"IF(B26<>\"\",MAX($A$10:A25)+1,\"\")","v":""}]
[{"$f":"IF(B27<>\"\",MAX($A$10:A26)+1,\"\")","v":""}]
[{"$f":"IF(B28<>\"\",MAX($A$10:A27)+1,\"\")","v":""}]
[{"$f":"IF(B29<>\"\",MAX($A$10:A28)+1,\"\")","v":""}]
[{"$f":"IF(B30<>\"\",MAX($A$10:A29)+1,\"\")","v":""}]
[null,null,null,null,"Subtotal C",{"$f":"SUM(F26:F30)","v":0}]
["E. Recursos propios de la entidad"]
[{"$f":"IF(B33<>\"\",MAX($A$10:A32)+1,\"\")","v":""}]
[{"$f":"IF(B34<>\"\",MAX($A$10:A33)+1,\"\")","v":""}]
[{"$f":"IF(B35<>\"\",MAX($A$10:A34)+1,\"\")","v":""}]
[{"$f":"IF(B36<>\"\",MAX($A$10:A35)+1,\"\")","v":""}]
[{"$f":"IF(B37<>\"\",MAX($A$10:A36)+1,\"\")","v":""}]
[{"$f":"IF(B38<>\"\",MAX($A$10:A37)+1,\"\")","v":""}]
[null,null,null,null,"Subtotal D",{"$f":"SUM(F33:F38)","v":0}]
["F. Otros ingresos"]
[{"$f":"IF(B41<>\"\",MAX($A$10:A40)+1,\"\")","v":""}]
[{"$f":"IF(B42<>\"\",MAX($A$10:A41)+1,\"\")","v":""}]
[{"$f":"IF(B43<>\"\",MAX($A$10:A42)+1,\"\")","v":""}]
[{"$f":"IF(B44<>\"\",MAX($A$10:A43)+1,\"\")","v":""}]
[{"$f":"IF(B45<>\"\",MAX($A$10:A44)+1,\"\")","v":""}]
[{"$f":"IF(B46<>\"\",MAX($A$10:A45)+1,\"\")","v":""}]
[{"$f":"IF(B47<>\"\",MAX($A$10:A46)+1,\"\")","v":""}]
[{"$f":"IF(B48<>\"\",MAX($A$10:A47)+1,\"\")","v":""}]
[{"$f":"IF(B49<>\"\",MAX($A$10:A48)+1,\"\")","v":""}]
[{"$f":"IF(B50<>\"\",MAX($A$10:A49)+1,\"\")","v":""}]
[{"$f":"IF(B51<>\"\",MAX($A$10:A50)+1,\"\")","v":""}]
[null,null,null,null,"Subtotal F",{"$f":"SUM(F41:F51)","v":0}]
["Total INGRESOS",null,null,null,"TOTAL",{"$f":"+F17+F24+F31+F39+F52","v":0}]
[]
[{"$f":"'Relación de gastos'!A86:K86","v":"El Sr./Sra. (indicar el nom i cognoms de la persona representant que signa la justificació)  amb DNI/NIE (indicar el núm. DNI) en qualitat de representant legal de la persona jurídica beneficiària (indicar nom i cognoms) amb NIF (indicar núm . NIF)."}]
["CERTIFICA que los ingresos imputados al proyecto/actividad/servicio subvencionado han sido efectivamente ingresados; que custodiará la documentación de apoyo que lo acredita; que esta documentación se encuentra a disposición del Ayuntamiento de Barcelona o de los otros entes municipales en los archivos de esta entidad, durante un periodo mínimo de 4 años a contar desde la fecha de presentación de esta justificación."]
[]
[null,"Población y fecha: ",{"$f":"IF('Relación de gastos'!C90<>\"\",'Relació de despeses'!C90,\"\")","v":""},null,null,"Firmado digitalmente"]
[]
[null,"Nota:"]
[null,"(*) Las columnas sombreadas en color amarillo se irán llenando automáticamente a partir de los datos introducidos en la hoja de gastos"]
[null,"(1) En caso de que el ingreso esté pendiente de cobro, indicar \"P. Cobro\" "]

{"sheet":"Resumen estado gastos-ingresos","index":2,"n_rows":43,"n_cols":11,"rows_kept":43,"cut":false,"hidden":false,"merged":[[2,0,2,1],[3,0,3,1],[2,5,2,6],[3,5,3,6],[6,5,6,6],[2,2,2,3],[3,2,3,3],[4,2,4,3],[4,0,4,1],[6,0,6,1],[15,5,15,6],[17,5,17,6],[16,5,16,6],[7,0,7,1],[8,0,8,1],[9,0,9,1],[15,0,15,1],[7,5,7,6],[8,5,8,6],[9,5,9,6],[10,5,10,6],[11,5,11,6],[5,0,5,3],[12,5,12,6],[13,5,13,6],[14,5,14,6],[5,5,5,8],[42,0,42,10],[37,0,37,10],[38,0,38,10],[39,0,39,10],[40,0,40,10],[41,0,41,10],[20,0,20,8],[21,0,27,10],[28,0,28,10],[29,0,30,10],[32,0,32,1],[10,0,10,1],[11,0,11,1],[12,0,12,1],[13,0,13,1],[14,0,14,1],[19,0,19,1],[19,2,19,3],[17,7,17,8],[16,0,16,1],[17,0,17,1],[18,0,18,1]]}
["Estado de los gastos realizados y de los ingresos obtenidos para la ejecución de la actividad subvencionada (*)"]
[]
["Nombre de la persona física/jurídica beneficiaria:         ",null,{"$f":"IF('Relación de gastos'!C3:D3<>\"\",'Relació de despeses'!C3:D3,\"\")","v":""},null,null,"Importe total del proyecto:",null,{"$f":"IF(+'Relación de gastos'!H3=\"\",\"\",+'Relación de gastos'!H3)","v":""}]
["Código de subvención:",null,{"$f":"IF('Relación de gastos'!C4:D4<>\"\",'Relació de despeses'!C4:D4,\"\")","v":""},null,null,"Importe de la subvención otorgada:",null,{"$f":"IF(+'Relación de gastos'!H4=\"\",\"\",+'Relación de gastos'!H4)","v":""}]
["Nombre del proyecto subvencionado:",null,{"$f":"IF('Relación de gastos'!C5:D5<>\"\",'Relació de despeses'!C5:D5,\"\")","v":""},null,null,"Periodo de ejecución del proyecto subvencionado:",null,null,{"$f":"IF(+'Relación de gastos'!H5=\"\",\"\",+'Relación de gastos'!H5)","v":""},"a",{"$f":"IF(+'Relación de gastos'!K5=\"\",\"\",+'Relación de gastos'!K5)","v":""}]
["Gastos del proyecto/actividad/servicio subvencionado",null,null,null,null,"Ingresos del proyecto/actividad/servicio subvencionado"]
["Concepto",null,"Previsión inicial o reformulación/modificación aprobada (1)","Gastos realizados\n(2)",null,"Concepto",null,"Previsión inicial o reformulación/modificación aprobada (1)","Ingresos obtenidos\n(3)"]
["A. Recursos Humanos \n(Nómina y Seguridad Social)",null,null,{"$f":"'Relación de gastos'!H27","v":0},null,"A.B. Subvenciones municipales (en total)",null,null,{"$f":"'Relación de ingresos '!F17","v":0}]
["B. Gastos derivados de la difusión, promoción, publicidad del proyecto y de los resultados",null,null,{"$f":"'Relación de gastos'!H36","v":0},null,"C. Subvenciones de otras administraciones",null,null,{"$f":"'Relación de ingresos '!F24","v":0}]
["C. Gastos de publicaciones en formato de acceso abierto (open access)",null,null,{"$f":"'Relación de gastos'!H43","v":0},null,"D. Aportaciones de entes privados",null,null,{"$f":"'Relación de ingresos '!F31","v":0}]
["D. Gastos de viajes, alojamiento y manutención",null,null,{"$f":"'Relación de gastos'!H50","v":0},null,"E. Recursos propios",null,null,{"$f":"'Relación de ingresos '!F39","v":0}]
["E. Gastos derivados de la internacionalización de la actividad",null,null,{"$f":"'Relación de gastos'!H57","v":0},null,"J. Otros ingresos",null,null,{"$f":"'Relación de ingresos '!F48","v":0}]
["F. Gastos de adquisición de equipamiento científico-técnico\n(*excluida la adquisición de software durante los tres últimos meses de ejecución, excluida la adquisición de material inventariable)",null,null,{"$f":"'Relación de gastos'!H64","v":0},null,"Total ingresos",null,{"$f":"SUM(H4:H12)","v":0},{"$f":"SUM(I4:I12)","v":0}]
["G. Gastos de adquisición de material fungible",null,null,{"$f":"'Relación de gastos'!H71","v":0},null,"% financiación municipal(5)",null,{"$f":"IF(H4=\"\",\"- %\",+H4/H13)","v":"- %"},{"$f":"IFERROR(IF(I4=\"\",\"- %\",I4/I13),\"-%\")","v":"- %"}]
["H. Gastos indirectos (máx. 18 % de la subvención)",null,null,{"$f":"'Relación de gastos'!H77","v":0}]
["I. Otros gastos\n (no incluidos en ninguno de los apartados anteriores. Especificar)",null,null,{"$f":"'Relación de gastos'!H82","v":0},null,"DESVIACIONES",null,"Previsión inicial","Final"]
["Total gastos",null,{"$f":"SUM(C8:C16)","v":0},{"$f":"SUM(D8:D16)","v":0},null,"Diferencia Ingresos - Gastos ",null,{"$f":"+H13-C17","v":0},{"$f":"+I13-D17","v":0}]
[null,null,null,null,null,"Desviación de gastos (4)",null,"Desviación de ingresos (4)"]
[null,null,null,null,null,"Importe"," % (6)","Importe","%"]
[null,null,null,null,null,{"$f":"D17-C17","v":0},{"$f":"IFERROR(F20/C17,0)","v":0},{"$f":"+I13-H13","v":0},{"$f":"IFERROR(H20/H13,0)","v":0}]
["Explicar los motivos por los que existe una desviación entre el gasto previsto en la solicitud de subvención y el finalmente realizado, así como entre los ingresos previstos y los obtenidos."]
[]
[]
[]
[]
[]
[]
[]
[{"$f":"'Relación de gastos'!A86:K86","v":"El Sr./Sra. (indicar el nom i cognoms de la persona representant que signa la justificació)  amb DNI/NIE (indicar el núm. DNI) en qualitat de representant legal de la persona jurídica beneficiària (indicar nom i cognoms) amb NIF (indicar núm . NIF)."}]
["DECLARA que, en relación con el proyecto/actividad/servicio subvencionado, se han producido los ingresos y gastos que figuran en el presente documento, y que las desviaciones respecto al presupuesto inicial se han producido por las motivaciones indicadas arriba, y para que así conste, a los efectos de justificar el cumplimiento del objeto de la subvención concedida, firmo la presente declaración responsable."]
[]
[]
["Población y fecha: ",null,{"$f":"IF('Relación de gastos'!C90<>\"\",'Relació de despeses'!C90,\"\")","v":""},null,null,"Firmado digitalmente."]
[]
[]
["Notas:"]
["(*) Las columnas sombreadas en color amarillo se irán rellenando automáticamente a partir de los datos introducidos en las hojas de gastos e ingresos"]
["(1) Previsión inicial o reformulación/modificación aprobada: Hay que indicar la previsión inicial de gastos e ingresos según lo que se indicó en el proyecto original en el \"Plan de viabilidad económica del proyecto - presupuesto general\". En caso de que ya se haya aprobado una reformulación/modificación, se deben indicar las cantidades reformuladas/modificadas. "]
["(2) Gastos reales: Coste real total del proyecto subvencionado. Automáticamente se introducirán los subtotales de los gastos relacionados en la hoja Gastos-detalle."]
["(3) Ingresos reales: Total de ingresos obtenidos para la realización del proyecto subvencionado. Automáticamente se introducirán los subtotales de los ingresos relacionados en la hoja Ingresos-detalle."]
["(4) Desviación: En el caso de los gastos, la desviación es la diferencia entre gastos reales y la previsión inicial de gastos; y en el caso de los ingresos, la diferencia entre los ingresos reales y la previsión inicial de ingresos. "]
["(5) % financiación municipal: porcentaje que suponen las subvenciones municipales (A.B.) respecto del total de ingresos del proyecto subvencionado."]
["(6) El % de la desviación final de gastos se calcula dividiendo el importe resultante de gastos reales - gastos previstos, entre el total de gastos previstos, y de la misma manera los ingresos. En caso de existir una desviación, siempre se tiene que motivar."]